bitfinex/quotes_SOLUSD_20220227
["timestamp","ask_amount","ask_price","bid_price","bid_amount"]
[1645969352934,2.74678921,90.052,89.898,2.62084802]
[1645969353135,2.74678921,90.052,89.921,2.38770696]
[1645969353338,2.74678921,90.052,89.922,0.25]
[1645969353537,2.74678921,90.052,89.924,2.27325855]
[1645969353738,108.9,90.05,89.927,2.48491708]
[1645969353943,108.9,90.05,89.928,6.25]
[1645969354144,2.74678921,90.049,89.928,8.99678921]
[1645969354344,108.9,90.048,89.928,2.99678921]
[1645969354545,1.72476804,90.047,89.928,0.25]
[1645969354743,4.47155725,90.047,89.928,0.25]
[1645969354943,110.46701392,90.046,89.902,6.25]
[1645969355146,4.445,90.045,89.902,0.25]
[1645969355348,10.66118301,90.045,89.921,108.9]
[1645969355546,10.66118301,90.045,89.924,2.59848561]
[1645969355745,108.9,90.046,89.927,2.359526]
[1645969355944,29.04246363,90.051,89.93,2.55944928]
[1645969355945,108.9,90.05,89.93,2.55944928]
[1645969356145,29.04246363,90.051,89.933,2.88315962]
[1645969356363,108.9,90.05,89.935,108.9]
[1645969356561,2.74678921,90.049,89.951,2.51443695]
[1645969356762,29.04246363,90.051,89.952,0.25]
[1645969356963,39.70364664,90.051,89.952,0.25]
[1645969357169,42.45043585,90.051,89.952,0.25]
[1645969357364,108.9,90.05,89.952,0.25]
[1645969357762,2.74678921,90.049,89.961,2.74569875]
[1645969357967,2.74678921,90.049,89.962,0.25]
[1645969358170,39.70364664,90.051,89.962,0.25]
[1645969358364,29.04246363,90.051,89.962,0.25]
[1645969358567,29.04246363,90.051,89.963,108.9]
[1645969358765,2.74678921,90.087,89.965,108.9]
[1645969358964,2.74678921,90.087,89.964,8.66253034]
[1645969358965,4.444,90.111,89.97,16.6727]
[1645969359164,10.66118301,90.122,89.971,8.69174219]
[1645969359364,1.76695279,90.119,89.971,8.69174219]
[1645969359564,1.76695279,90.119,89.971,8.49678921]
[1645969359764,28.85459865,90.118,89.972,18.39354159]
[1645969359963,28.85459865,90.118,89.973,111.74711065]
[1645969360163,28.85459865,90.118,89.974,3.00954158]
[1645969360364,28.85459865,90.118,89.975,108.9]
[1645969360569,28.85459865,90.118,89.974,46.81774175]
[1645969360570,28.85459865,90.118,89.99,16.6687]
[1645969360765,28.85459865,90.118,89.991,2.41442348]
[1645969360963,28.85459865,90.118,89.992,108.9]
[1645969361167,28.85459865,90.118,89.993,2.51170765]
[1645969361366,28.85459865,90.118,89.997,108.9]
[1645969361563,28.85459865,90.118,89.999,108.9]
[1645969361764,28.85459865,90.118,90.001,108.9]
[1645969361965,28.85459865,90.118,90.003,108.9]
[1645969362166,28.85459865,90.118,90.02,16.6586]
[1645969362366,28.85459865,90.118,90.021,8.80428104]
[1645969362766,28.85459865,90.118,90.021,11.55107025]
[1645969362966,28.85459865,90.118,90.021,8.80428104]
[1645969363169,0.25,90.117,90.021,8.80428104]
[1645969363370,28.85459865,90.118,90.021,8.80428104]
[1645969364569,28.85459865,90.118,90.05,16.6567]
[1645969364769,31.60138786,90.118,90.051,2.86927338]
[1645969364970,31.60138786,90.118,89.994,3.04897422]
[1645969365169,47.2125,90.117,89.992,16.9011]
[1645969365369,47.2125,90.117,89.982,2.97945224]
[1645969365570,2.74678921,90.116,89.982,2.97945224]
[1645969365873,47.2125,90.117,90.011,2.71528084]
[1645969366069,47.2125,90.117,90.012,0.25]
[1645969366870,47.2125,90.117,90.03,16.6612]
[1645969367073,28.85459865,90.118,90.031,112.02929066]
[1645969367074,2.74678921,90.116,90.031,112.02929066]
[1645969367271,28.85459865,90.118,90.033,108.9]
[1645969367469,28.85459865,90.118,90.034,7.73713708]
[1645969367669,27.35459865,90.118,90.035,6.0]
[1645969367871,27.35459865,90.118,90.036,4.69]
[1645969368071,27.35459865,90.118,90.037,6.0]
[1645969368271,27.35459865,90.118,90.038,0.25]
[1645969368474,27.35459865,90.118,90.05,16.6528]
[1645969368670,27.35459865,90.118,90.051,2.78229686]
[1645969368870,27.35459865,90.118,90.052,0.25]
[1645969369071,27.35459865,90.118,90.051,2.53229686]
[1645969369272,27.35459865,90.118,90.003,7.04618685]
[1645969369473,2.74678921,90.117,90.004,6.25]
[1645969369672,27.35459865,90.118,90.005,113.341]
[1645969369872,27.35459865,90.118,90.007,108.9]
[1645969370073,27.35459865,90.118,90.008,13.21089879]
[1645969370274,27.35459865,90.118,90.008,7.21089879]
[1645969370473,0.25,90.117,90.03,16.6609]
[1645969370673,0.25,90.117,90.031,2.98954059]
[1645969371674,0.25,90.117,90.04,16.6597]
[1645969371879,27.35459865,90.118,90.041,2.99466516]
[1645969372274,27.35459865,90.118,90.041,0.25]
[1645969372475,27.35459865,90.118,90.036,0.25]
[1645969372676,27.35459865,90.118,90.01,6.25]
[1645969372875,27.35459865,90.118,90.011,69.691]
[1645969373076,27.35459865,90.118,90.06,16.6564]
[1645969373279,27.35459865,90.118,90.061,2.86881466]
[1645969373475,27.35459865,90.118,90.062,0.25]
[1645969373678,27.35459865,90.118,90.061,2.86881466]
[1645969373876,27.35459865,90.118,90.062,0.25]
[1645969374080,27.35459865,90.118,90.061,2.86881466]
[1645969374479,27.35459865,90.118,90.015,23.2586]
[1645969374480,27.35459865,90.118,90.017,2.4496062]
[1645969374678,4.17648644,90.117,90.002,2.89737444]
[1645969374880,0.25,90.116,89.986,2.54037575]
[1645969375077,0.25,90.116,89.986,111.44037575]
[1645969375278,0.25,90.116,89.987,2.52374081]
[1645969375479,2.99678921,90.116,89.989,108.9]
[1645969375678,0.25,90.116,89.991,108.9]
[1645969375881,0.25,90.116,90.01,16.6625]
[1645969376079,0.25,90.116,90.012,2.2873473]
[1645969376282,0.25,90.116,90.001,3.08329235]
[1645969376680,0.25,90.116,90.002,2.66995905]
[1645969376880,0.25,90.116,90.004,108.9]
[1645969377082,0.25,90.116,90.005,2.99166605]
[1645969377381,27.35459865,90.118,90.031,108.9]
[1645969377579,27.35459865,90.118,90.032,0.25]
[1645969378182,30.10138786,90.118,90.032,0.25]
[1645969378581,27.35459865,90.118,90.032,0.25]
[1645969378788,27.35459865,90.118,90.009,0.25]
[1645969378981,108.9,90.117,90.008,2.96657488]
[1645969379183,111.64678921,90.117,90.031,2.42532651]
[1645969379384,1.49886774,90.116,89.995,2.95957551]
[1645969379586,108.9,90.114,89.995,2.95957551]
[1645969379784,1.52845793,90.113,89.995,2.95957551]
[1645969380185,108.9,90.111,89.977,2.84067739]
[1645969380387,1.63383259,90.11,89.969,108.9]
[1645969380585,4.3806218,90.11,89.985,2.57793432]
[1645969380784,4.3806218,90.11,89.991,108.9]
[1645969380985,4.3806218,90.11,89.968,16.3064]
[1645969380986,2.74678921,90.124,89.996,2.30450032]
[1645969381189,108.9,90.145,89.999,3.085824]
[1645969381386,108.9,90.145,90.001,108.9]
[1645969381586,108.9,90.145,90.004,3.00362614]
[1645969381784,108.9,90.145,90.007,2.36515708]
[1645969381983,49.89088498,90.168,90.01,2.31796594]
[1645969382186,48.4536,90.168,90.03,16.6563]
[1645969382384,48.4536,90.168,90.031,115.15]
[1645969382583,48.4536,90.168,90.032,3.03001644]
[1645969382785,48.4536,90.168,90.035,2.89907421]
[1645969382985,48.4536,90.168,90.038,2.85958266]
[1645969383284,48.4536,90.168,90.041,3.00608095]
[1645969383487,30.59268532,90.153,90.09,16.65]
[1645969383686,30.59268532,90.153,90.091,2.69720258]
[1645969383888,30.59268532,90.153,90.043,28.7408]
[1645969384085,30.59268532,90.153,90.044,8.75321098]
[1645969384684,133.58974293,90.152,90.044,8.50321098]
[1645969384885,132.2111,90.152,90.031,111.34383022]
[1645969385087,1.7822983,90.151,90.031,2.44383022]
[1645969385287,1.7822983,90.151,90.032,6.0]
[1645969385486,1.7822983,90.151,90.031,5.19061943]
[1645969385686,1.7822983,90.151,90.018,2.74678921]
[1645969385885,108.9,90.149,90.013,4.439]
[1645969386087,108.9,90.147,89.991,2.74678921]
[1645969386286,1.75788944,90.146,89.992,4.441]
[1645969386489,4.441,90.145,89.992,4.441]
[1645969386686,1.75788944,90.146,89.993,2.74678921]
[1645969386889,108.9,90.144,90.001,2.60295866]
[1645969387087,108.9,90.109,90.001,2.60295866]
[1645969387386,108.9,90.107,90.001,2.60295866]
[1645969387793,108.9,90.105,90.001,2.60295866]
[1645969387987,108.9,90.105,89.98,16.6697]
[1645969387988,108.9,90.103,89.981,3.05889715]
[1645969388188,1.59216506,90.102,89.981,3.05889715]
[1645969388388,1.5568643,90.098,89.981,3.05889715]
[1645969388587,4.442,90.097,89.957,2.74678921]
[1645969388790,108.9,90.096,89.945,23.0042]
[1645969388990,108.9,90.092,89.946,2.50117331]
[1645969389188,108.9,90.092,89.928,4.442]
[1645969389189,4.442,90.091,89.96,16.6736]
[1645969389389,4.442,90.091,89.941,2.48784849]
[1645969389390,1.74621777,90.089,89.941,2.48784849]
[1645969389588,4.442,90.088,89.941,2.48784849]
[1645969389791,24.50437175,90.088,89.941,2.48784849]
[1645969389989,1.79331476,90.086,89.928,2.61990852]
[1645969390191,55.595,90.07,89.92,19.4639342]
[1645969390389,108.9,90.067,89.921,2.39573241]
[1645969390590,108.9,90.065,89.921,2.39573241]
[1645969390789,1.74004048,90.058,89.921,2.39573241]
[1645969391292,2.74678921,90.057,89.921,2.39573241]
[1645969391493,2.74678921,90.057,89.922,4.442]
[1645969391690,2.74678921,90.057,89.921,2.39573241]
[1645969392094,2.74678921,90.057,89.95,16.6761]
[1645969392290,2.74678921,90.057,89.93,55.5828]
[1645969392291,2.74678921,90.057,89.931,108.9]
[1645969392490,2.74678921,90.057,89.932,2.28121804]
[1645969392991,16.1785,90.06,89.932,2.28121804]
[1645969392992,31.08264177,90.068,89.932,2.28121804]
[1645969393193,31.08264177,90.068,89.98,16.6705]
[1645969393392,31.08264177,90.068,89.984,0.25]
[1645969393994,31.08264177,90.068,89.961,2.30813878]
[1645969394390,31.08264177,90.068,89.98,16.6706]
[1645969394591,31.08264177,90.068,89.984,0.25]
[1645969395494,31.08264177,90.068,89.99,16.6686]
[1645969395793,31.08264177,90.068,89.984,0.25]
[1645969395794,4.442,90.111,89.992,2.51624702]
[1645969395992,163.9286,90.13,89.993,0.25]
[1645969395993,108.3705,90.13,89.993,0.25]
[1645969396195,108.3705,90.13,89.994,108.9]
[1645969396394,108.3705,90.13,89.997,2.35230738]
[1645969396596,108.9,90.118,89.998,6.25]
[1645969396794,27.99897452,90.106,89.998,6.25]
[1645969397295,27.99897452,90.106,90.0,125.5659]
[1645969397494,0.25,90.105,90.003,2.42945876]
[1645969397694,0.25,90.105,90.005,3.03993654]
[1645969397896,0.25,90.105,90.006,6.25]
[1645969398300,0.25,90.105,90.03,16.6596]
[1645969398494,0.25,90.105,90.031,0.25]
[1645969398698,0.25,90.105,90.031,3.12070821]
[1645969398894,27.99897452,90.106,90.031,3.12070821]
[1645969399097,27.99897452,90.106,90.032,0.25]
[1645969400095,27.99897452,90.106,90.017,0.25]
[1645969400396,27.99897452,90.106,90.04,16.6596]
[1645969400595,27.99897452,90.106,90.041,2.26884479]
[1645969400997,27.99897452,90.106,90.02,55.5276]
[1645969401197,27.99897452,90.106,90.022,3.03051098]
[1645969401496,27.99897452,90.106,90.023,0.25]
[1645969402606,0.25,90.105,90.031,2.62441516]
[1645969402802,0.25,90.105,90.032,0.25]
[1645969403698,0.25,90.105,90.031,2.62441516]
[1645969403898,109.15,90.105,90.031,2.62441516]
[1645969404097,111.89678921,90.105,90.011,2.52855545]
[1645969404699,1.71866138,90.104,89.986,2.63315374]
[1645969404897,108.9,90.099,89.95,55.5701]
[1645969405098,108.9,90.097,89.97,16.6719]
[1645969405298,108.9,90.095,89.971,2.5293729]
[1645969405497,108.9,90.095,89.931,4.442]
[1645969405498,108.9,90.093,89.96,2.52374125]
[1645969405698,108.9,90.091,89.96,2.52374125]
[1645969405998,16.6785,90.06,89.96,2.52374125]
[1645969406198,27.00925319,90.058,89.94,16.6775]
[1645969406398,108.9,90.057,89.947,2.67592605]
[1645969406598,1.4937296,90.056,89.947,2.67592605]
[1645969406797,0.25,90.055,89.947,2.67592605]
[1645969407200,2.74678921,90.054,89.947,2.67592605]
[1645969407599,108.9,90.049,89.947,2.67592605]
[1645969407800,1.42196994,90.048,89.947,2.67592605]
[1645969408000,4.16875915,90.048,89.941,2.91611315]
[1645969408200,2.74678921,90.048,89.95,16.6762]
[1645969408402,2.74678921,90.048,89.951,2.43095632]
[1645969409006,1.61420801,90.055,89.951,2.43095632]
[1645969409204,0.25,90.055,89.952,0.25]
[1645969409404,22.9768,90.057,89.961,2.84912752]
[1645969409608,22.9768,90.057,89.962,0.25]
[1645969410411,22.9768,90.057,89.972,3.0041036]
[1645969410612,189.53397985,90.105,89.972,3.0041036]
[1645969410812,78.9862,90.105,89.974,108.9]
[1645969411009,78.9862,90.105,89.975,10.692]
[1645969411211,2.74678921,90.092,89.977,2.90724881]
[1645969411414,1.69635714,90.091,89.97,16.6716]
[1645969411611,108.9,90.057,89.971,2.55664649]
[1645969412010,4.442,90.09,89.971,2.55664649]
[1645969412313,1.69635714,90.091,89.971,2.55664649]
[1645969412314,1.69635714,90.091,89.971,2.30664649]
[1645969412532,1.43647647,90.09,89.971,2.30664649]
[1645969412711,1.43647647,90.09,89.961,108.9]
[1645969412712,23.0967,90.091,89.98,16.6708]
[1645969412912,23.0967,90.091,89.981,2.33804159]
[1645969413110,23.0967,90.091,89.97,55.5584]
[1645969413111,23.0967,90.091,89.971,108.9]
[1645969413311,23.0967,90.091,89.973,108.9]
[1645969413513,23.0967,90.091,89.975,2.8596792]
[1645969413711,190.63298921,90.105,89.975,2.8596792]
[1645969413712,81.73298921,90.105,89.991,108.9]
[1645969413911,81.73298921,90.105,89.992,2.8029084]
[1645969413912,78.9862,90.105,89.992,2.8029084]
[1645969414111,35.30821734,90.103,90.01,55.538]
[1645969414311,35.30821734,90.103,90.011,3.31615129]
[1645969414711,35.30821734,90.103,90.011,112.21615129]
[1645969414913,35.30821734,90.103,90.021,108.9]
[1645969415111,35.30821734,90.103,90.022,3.30113232]
[1645969415510,35.30821734,90.103,90.022,0.25]
[1645969415709,0.25,90.102,90.011,11.22061288]
[1645969415912,0.25,90.102,90.012,0.25]
[1645969416313,2.74678921,90.101,90.011,8.71]
[1645969417713,108.9,90.1,90.011,11.20702605]
[1645969417913,1.69967804,90.099,90.011,11.20702605]
[1645969418114,4.44646725,90.099,90.011,11.20702605]
[1645969418314,2.74678921,90.098,90.011,11.20702605]
[1645969419117,0.25,90.102,90.011,11.20702605]
[1645969419319,0.25,90.102,90.02,16.6631]
[1645969419519,35.30821734,90.103,90.021,109.15]
[1645969419819,35.30821734,90.103,90.022,2.4863764]
[1645969420023,35.30821734,90.103,90.023,0.25]
[1645969420218,35.30821734,90.103,90.021,0.25]
[1645969420419,35.30821734,90.103,90.04,16.6596]
[1645969420619,35.30821734,90.103,90.041,2.68762961]
[1645969420819,35.30821734,90.103,90.021,0.25]
[1645969421219,35.30821734,90.103,90.012,0.25]
[1645969421422,35.30821734,90.103,90.012,109.15]
[1645969421620,35.30821734,90.103,90.013,2.85173981]
[1645969421819,35.30821734,90.103,90.014,0.25]
[1645969422221,108.9,90.102,90.02,16.6631]
[1645969422420,108.9,90.102,90.011,8.71]
[1645969422421,111.64678921,90.102,90.011,8.71]
[1645969422624,2.74678921,90.101,90.011,8.71]
[1645969422828,0.25,90.1,90.011,8.71]
[1645969423323,2.74678921,90.099,90.011,8.71]
[1645969423829,2.74678921,90.099,89.971,108.9]
[1645969423830,2.74678921,90.099,90.001,2.30839012]
[1645969424026,1.36788794,90.097,89.955,2.7957484]
[1645969424226,4.442,90.096,89.955,2.7957484]
[1645969424425,108.9,90.095,89.955,2.7957484]
[1645969424626,108.9,90.093,89.955,2.7957484]
[1645969424925,108.9,90.091,89.955,2.7957484]
[1645969425229,108.9,90.088,89.955,2.7957484]
[1645969425726,108.9,90.088,89.961,2.99479064]
[1645969425925,108.9,90.086,89.962,0.25]
[1645969426328,2.74678921,90.085,89.961,2.99479064]
[1645969426526,108.9,90.079,89.961,2.99479064]
[1645969426725,1.83615753,90.078,89.961,2.99479064]
[1645969426925,4.58294674,90.078,89.961,2.99479064]
[1645969427126,0.25,90.077,89.961,2.99479064]
[1645969427326,2.99678921,90.077,89.961,2.99479064]
[1645969427547,108.9,90.074,89.961,2.99479064]
[1645969427729,108.9,90.072,89.961,2.99479064]
[1645969427927,1.86163594,90.071,89.962,0.25]
[1645969428326,108.9,90.069,89.962,0.25]
[1645969428527,108.9,90.069,89.961,2.99479064]
[1645969428727,1.50759777,90.068,89.943,2.7602657]
[1645969428927,113.344,90.067,89.944,0.25]
[1645969429228,7.19078921,90.067,89.944,0.25]
[1645969429431,2.74678921,90.067,89.944,0.25]
[1645969429628,2.74678921,90.067,89.945,108.9]
[1645969429828,2.74678921,90.067,89.947,108.9]
[1645969430027,2.74678921,90.067,89.949,108.9]
[1645969430232,2.74678921,90.067,89.951,108.9]
[1645969430428,48.2469,90.07,89.971,108.9]
[1645969430628,48.2469,90.07,89.972,0.25]
[1645969431927,48.2469,90.07,89.958,0.25]
[1645969432129,48.2469,90.07,89.98,16.6698]
[1645969432328,108.9,90.069,89.981,2.27770316]
[1645969432629,27.68424351,90.068,89.958,0.25]
[1645969432833,108.9,90.067,89.951,3.35820576]
[1645969433032,136.58424351,90.067,89.951,3.35820576]
[1645969433231,136.58424351,90.067,89.951,0.25]
[1645969433432,2.74678921,90.066,89.95,0.25]
[1645969433633,108.9,90.065,89.96,16.6739]
[1645969433832,108.9,90.065,89.961,2.30644382]
[1645969433833,1.43561492,90.064,89.961,2.30644382]
[1645969434032,1.43561492,90.064,89.933,4.442]
[1645969434033,4.442,90.063,89.943,2.31619916]
[1645969434233,1.65716143,90.062,89.943,2.31619916]
[1645969434432,108.9,90.059,89.943,2.31619916]
[1645969434633,108.9,90.049,89.94,16.6779]
[1645969434833,108.9,90.047,89.933,4.442]
[1645969435054,108.9,90.044,89.933,4.442]
[1645969435258,1.69734086,90.041,89.933,4.442]
[1645969435856,108.9,90.039,89.933,4.442]
[1645969436057,1.74539444,90.038,89.933,4.442]
[1645969436258,108.9,90.037,89.933,4.442]
[1645969436559,108.9,90.035,89.933,4.442]
[1645969436758,108.9,90.033,89.933,4.442]
[1645969437160,108.9,90.029,89.933,4.442]
[1645969437560,2.74678921,90.028,89.887,47.1846]
[1645969437763,108.9,90.027,89.877,2.45475151]
[1645969437965,0.58,90.018,89.822,112.2]
[1645969438162,4.16,89.998,89.857,2.67572299]
[1645969438361,108.9,89.969,89.821,2.57308921]
[1645969438563,1.96993301,89.968,89.821,2.57308921]
[1645969438761,108.9,89.966,89.822,35.13003706]
[1645969438962,108.9,89.964,89.823,2.8619272]
[1645969439162,1.61768796,89.963,89.823,2.8619272]
[1645969439364,1.61768796,89.963,89.825,108.9]
[1645969439563,108.9,89.959,89.83,16.6989]
[1645969439761,1.77557454,89.958,89.831,9.04962644]
[1645969439962,1.77557454,89.958,89.831,6.0]
[1645969440163,108.9,89.956,89.831,6.0]
[1645969440361,108.9,89.956,89.822,35.13003706]
[1645969440362,108.9,89.956,89.824,114.9]
[1645969440567,1.60621783,89.955,89.825,2.62703246]
[1645969440763,1.60621783,89.955,89.827,108.9]
[1645969440963,1.60621783,89.955,89.828,6.25]
[1645969441263,1.54085835,89.956,89.831,2.97391618]
[1645969441561,1.54085835,89.956,89.841,36.41681002]
[1645969441763,1.54085835,89.956,89.842,0.25]
[1645969441964,2.74678921,89.955,89.842,2.54218879]
[1645969442365,5.40886253,89.955,89.842,2.29218879]
[1645969442570,108.9,89.954,89.807,2.74678921]
[1645969442765,108.9,89.952,89.808,6.0]
[1645969442967,108.9,89.952,89.796,8.63495589]
[1645969443167,1.40042734,89.949,89.796,8.63495589]
[1645969443367,4.45,89.948,89.796,2.63495589]
[1645969443567,0.58,89.928,89.761,2.74678921]
[1645969443766,108.9,89.919,89.761,2.74678921]
[1645969443969,108.9,89.917,89.761,2.85274111]
[1645969444368,1.83969982,89.916,89.761,2.85274111]
[1645969444567,108.9,89.914,89.762,26.10159308]
[1645969444770,108.9,89.899,89.762,26.10159308]
[1645969444969,108.9,89.897,89.727,2.53536242]
[1645969445172,1.71221354,89.894,89.719,2.27551398]
[1645969445368,0.58,89.877,89.719,2.27551398]
[1645969445569,108.9,89.875,89.7,2.54765738]
[1645969445774,51.7903,89.876,89.7,2.54765738]
[1645969445775,4.16,89.857,89.7,2.54765738]
[1645969445970,108.9,89.855,89.701,32.90671775]
[1645969446269,108.9,89.853,89.701,32.90671775]
[1645969446468,108.9,89.851,89.702,2.32008296]
[1645969446667,4.455,89.852,89.702,2.32008296]
[1645969446668,108.9,89.849,89.702,2.32008296]
[1645969446868,16.72,89.83,89.71,16.7206]
[1645969447069,35.07142165,89.828,89.711,2.53661892]
[1645969447269,1.59277058,89.827,89.71,23.33585862]
[1645969447470,1.59277058,89.827,89.711,11.00601863]
[1645969447669,33.6542643,89.828,89.713,2.9248258]
[1645969447869,33.6542643,89.828,89.715,34.53609729]
[1645969448072,33.6542643,89.828,89.716,8.51888261]
[1645969448274,33.6542643,89.828,89.716,31.85474123]
[1645969448472,1.86505646,89.846,89.717,3.30255014]
[1645969448672,1.86505646,89.846,89.719,108.9]
[1645969448878,1.86505646,89.846,89.72,6.25]
[1645969449073,1.86505646,89.846,89.72,6.0]
[1645969449474,27.55488584,89.845,89.73,16.7159]
[1645969449675,27.55488584,89.845,89.732,34.13803274]
[1645969449876,1.52499878,89.843,89.733,2.83926608]
[1645969450476,1.71282132,89.842,89.698,2.8985176]
[1645969450677,16.7189,89.84,89.72,16.7182]
[1645969450881,4.455,89.839,89.721,2.53692805]
[1645969451176,4.45961053,89.842,89.698,16.7523]
[1645969451377,2.74678921,89.838,89.722,30.04504937]
[1645969451579,2.74678921,89.838,89.722,32.64291221]
[1645969451779,2.74678921,89.838,89.722,30.04504937]
[1645969451980,30.50605897,89.837,89.722,33.03978018]
[1645969452178,1.41545052,89.836,89.722,30.04504937]
[1645969452379,30.2132987,89.836,89.664,2.54009236]
[1645969452579,1.83142474,89.834,89.665,10.456]
[1645969452780,4.456,89.833,89.665,29.12564986]
[1645969452981,108.9,89.829,89.69,16.7238]
[1645969453187,1.60493819,89.828,89.69,16.7238]
[1645969453384,1.86595997,89.826,89.691,32.84820245]
[1645969453589,4.456,89.825,89.666,2.49598414]
[1645969453806,109.15,89.824,89.661,2.5544783]
[1645969453983,108.9,89.822,89.655,3.40641918]
[1645969454183,6.30632248,89.823,89.655,3.40641918]
[1645969454184,1.53807933,89.821,89.655,3.40641918]
[1645969454384,2.99678921,89.824,89.662,24.8054721]
[1645969454582,2.74678921,89.821,89.663,35.31200074]
[1645969454785,4.457,89.82,89.664,6.97744374]
[1645969454983,4.457,89.82,89.665,6.25]
[1645969455185,111.64678921,89.819,89.67,16.7271]
[1645969455385,6.12020024,89.818,89.671,2.57195396]
[1645969455583,4.40998945,89.818,89.672,10.457]
[1645969455783,1.40153045,89.816,89.672,10.457]
[1645969455987,1.40153045,89.816,89.672,4.457]
[1645969456186,2.74678921,89.815,89.664,2.66332475]
[1645969456384,108.9,89.812,89.664,7.12032475]
[1645969456584,108.9,89.809,89.67,16.7254]
[1645969456785,108.9,89.807,89.663,32.86596879]
[1645969456988,5.94361625,89.808,89.663,32.86596879]
[1645969456989,108.9,89.805,89.663,32.86596879]
[1645969457184,108.9,89.803,89.664,3.11495075]
[1645969457384,0.25,89.802,89.664,3.11495075]
[1645969457589,113.357,89.801,89.664,3.11495075]
[1645969457786,108.9,89.799,89.626,7.4427256]
[1645969457986,108.9,89.797,89.627,6.0]
[1645969458187,1.72365842,89.796,89.627,6.0]
[1645969458484,113.358,89.795,89.627,6.0]
[1645969458688,113.358,89.795,89.612,31.72855799]
[1645969458689,108.9,89.793,89.612,31.72855799]
[1645969458884,108.9,89.791,89.613,13.34404105]
[1645969459085,1.37257289,89.79,89.613,13.34404105]
[1645969459285,4.458,89.789,89.613,13.34404105]
[1645969459485,108.9,89.767,89.613,2.99263369]
[1645969459686,1.54125312,89.764,89.613,2.99263369]
[1645969460186,108.9,89.762,89.613,2.99263369]
[1645969460387,108.9,89.76,89.613,2.99263369]
[1645969460587,108.9,89.758,89.613,2.99263369]
[1645969460888,1.41191672,89.757,89.614,6.0]
[1645969461088,108.9,89.749,89.601,2.49421949]
[1645969461311,108.9,89.749,89.59,0.5]
[1645969461312,4.16,89.737,89.59,0.5]
[1645969461487,4.16,89.727,89.59,0.5]
[1645969461886,110.42744744,89.725,89.609,8e-05]
[1645969462086,29.95658921,89.726,89.609,8e-05]
[1645969462087,4.16,89.717,89.609,8e-05]
[1645969462289,108.9,89.709,89.609,8e-05]
[1645969462488,108.9,89.705,89.609,8e-05]
[1645969462686,1.78445039,89.702,89.609,8e-05]
[1645969462886,4.16,89.697,89.609,8e-05]
[1645969463190,108.9,89.685,89.609,8e-05]
[1645969463389,108.9,89.681,89.59,0.00018]
[1645969463588,108.9,89.679,89.59,0.00018]
[1645969463793,108.9,89.659,89.59,0.00018]
[1645969463991,108.9,89.657,89.59,0.00018]
[1645969464188,108.9,89.655,89.59,0.00018]
[1645969464388,1.83413828,89.654,89.59,0.00018]
[1645969464587,113.363,89.653,89.59,0.00018]
[1645969464791,1.81550844,89.652,89.59,0.00018]
[1645969464991,4.56229765,89.652,89.59,0.00018]
[1645969465196,108.9,89.65,89.59,0.00018]
[1645969465388,16.7594,89.64,89.59,0.00018]
[1645969465591,6.0852973,89.649,89.59,0.00018]
[1645969465592,1.84298035,89.638,89.59,0.00018]
[1645969465989,108.9,89.636,89.59,0.00018]
[1645969466189,108.9,89.634,89.59,0.00018]
[1645969466388,108.9,89.632,89.59,0.00018]
[1645969466692,108.9,89.629,89.59,0.00018]
[1645969466889,17.3972789,89.631,89.59,0.00018]
[1645969467089,2.74678921,89.652,89.59,0.00018]
[1645969467290,76.5224,89.692,89.59,0.00018]
[1645969467492,2.74678921,89.669,89.59,0.00018]
[1645969467693,7.28860227,89.665,89.59,0.00018]
[1645969467891,4.462,89.664,89.59,0.00018]
[1645969468294,26.51438921,89.696,89.59,0.00018]
[1645969468694,2.74678921,89.691,89.59,0.00018]
[1645969468916,1.66027721,89.69,89.59,0.00018]